bitfinex-derivatives/quotes_SOLF0:USTF0_20250428
["timestamp","ask_amount","ask_price","bid_price","bid_amount"]
[1745879184220,6.7865,147.32,147.29,6.7875]
[1745879185222,6.7865,147.32,147.28,6.7879]
[1745879185526,6.7867,147.31,147.28,6.7879]
[1745879186827,6.7872,147.3,147.27,6.7884]
[1745879187528,6.03781238,147.29,147.27,6.7884]
[1745879188126,6.03781238,147.29,147.28,6.788]
[1745879189324,6.7883,147.28,147.25,6.03781238]
[1745879189626,6.03781238,147.27,147.23,31.25781238]
[1745879190025,6.03781238,147.27,147.24,6.7898]
[1745879191529,12.82641238,147.27,147.24,6.7898]
[1745879192029,12.82641238,147.27,147.23,38.04801238]
[1745879192225,12.82641238,147.27,147.23,31.25781238]
[1745879193225,12.82641238,147.27,147.24,6.7898]
[1745879194327,6.7891,147.26,147.23,38.04801238]
[1745879194532,12.82691238,147.26,147.23,32.0102]
[1745879194919,6.03781238,147.26,147.23,32.0102]
[1745879195528,12.82641238,147.27,147.23,32.0102]
[1745879196030,6.03781238,147.27,147.24,6.7899]
[1745879197626,6.03781238,147.27,147.25,6.7894]
[1745879198326,6.03781238,147.29,147.26,6.789]
[1745879198631,6.03781238,147.27,147.23,25.22]
[1745879198832,6.03781238,147.26,147.24,6.7898]
[1745879199130,6.03781238,147.25,147.2,25.2]
[1745879199431,6.03781238,147.22,147.2,31.9915]
[1745879199630,6.03781238,147.21,147.2,6.7915]
[1745879200026,6.03781238,147.23,147.19,6.03781238]
[1745879200332,31.23781238,147.25,147.2,6.03781238]
[1745879200731,31.23781238,147.25,147.23,6.7901]
[1745879201030,6.03781238,147.25,147.23,6.7901]
[1745879202633,6.03781238,147.25,147.2,6.03781238]
[1745879202634,6.03781238,147.25,147.24,6.7899]
[1745879204634,6.03781238,147.25,147.23,6.7901]
[1745879204933,6.03781238,147.24,147.23,6.7901]
[1745879208236,6.03781238,147.24,147.22,6.7906]
[1745879213843,6.03781238,147.23,147.21,6.7911]
[1745879214035,6.03781238,147.22,147.18,6.03781238]
[1745879214534,6.03781238,147.22,147.2,6.7915]
[1745879215940,6.03781238,147.23,147.2,6.7915]
[1745879216942,6.03781238,147.23,147.18,6.03781238]
[1745879217144,6.03781238,147.25,147.2,6.03781238]
[1745879217441,6.03781238,147.25,147.21,6.03781238]
[1745879218340,6.03781238,147.25,147.22,6.7906]
[1745879219943,6.03781238,147.25,147.23,6.7902]
[1745879220146,6.03781238,147.25,147.2,6.03781238]
[1745879220439,6.03781238,147.24,147.2,6.03781238]
[1745879220644,6.03781238,147.24,147.22,6.7904]
[1745879221344,6.03781238,147.24,147.2,6.03781238]
[1745879221345,6.03781238,147.24,147.23,6.7903]
[1745879225446,6.03781238,147.24,147.22,6.7906]
[1745879225748,31.3591,147.28,147.17,31.23781238]
[1745879225749,6.03781238,147.23,147.17,31.23781238]
[1745879225950,31.3591,147.28,147.17,31.23781238]
[1745879225951,6.03781238,147.22,147.17,31.23781238]
[1745879226247,31.3591,147.28,147.18,6.03781238]
[1745879226447,6.03781238,147.23,147.18,6.03781238]
[1745879226747,6.03781238,147.23,147.21,6.791]
[1745879231450,6.03781238,147.24,147.19,6.03781238]
[1745879231852,6.03781238,147.24,147.22,6.7906]
[1745879237456,6.03781238,147.25,147.21,6.03781238]
[1745879237956,6.03781238,147.25,147.2,6.03781238]
[1745879238256,6.03781238,147.24,147.22,6.7904]
[1745879238759,6.03781238,147.24,147.23,6.7903]
[1745879239460,6.03781238,147.25,147.24,6.7896]
[1745879239659,6.03781238,147.26,147.24,6.7896]
[1745879240359,6.03781238,147.26,147.23,6.7901]
[1745879240658,6.03781238,147.25,147.21,6.03781238]
[1745879240860,6.03781238,147.25,147.22,6.7906]
[1745879241054,6.03781238,147.24,147.2,31.23781238]
[1745879241253,6.03781238,147.25,147.23,6.7901]
[1745879244563,6.03781238,147.25,147.24,6.7899]
[1745879245560,6.03781238,147.25,147.23,6.7901]
[1745879250065,6.03781238,147.27,147.23,6.03781238]
[1745879250366,6.03781238,147.28,147.23,6.03781238]
[1745879250561,6.03781238,147.28,147.26,6.7887]
[1745879251168,6.03781238,147.27,147.23,6.03781238]
[1745879251470,6.03781238,147.26,147.22,6.03781238]
[1745879251667,6.03781238,147.27,147.26,6.789]
[1745879252062,6.03781238,147.29,147.25,6.03781238]
[1745879252268,6.03781238,147.32,147.28,6.03781238]
[1745879252568,6.03781238,147.35,147.31,6.7866]
[1745879253071,6.03781238,147.34,147.31,6.7866]
[1745879253265,6.03781238,147.32,147.28,25.2]
[1745879253469,6.03781238,147.29,147.25,25.2]
[1745879253665,6.03781238,147.27,147.25,25.2]
[1745879254274,6.03781238,147.27,147.25,31.9894]
[1745879254475,6.03781238,147.27,147.25,25.2]
[1745879254871,6.03781238,147.27,147.25,31.9894]
[1745879255174,6.03781238,147.26,147.25,25.2]
[1745879255379,6.03781238,147.27,147.22,31.19781238]
[1745879256173,6.03781238,147.26,147.22,25.16]
[1745879256374,6.03781238,147.25,147.22,25.16]
[1745879256575,6.03781238,147.26,147.22,31.9505]
[1745879258078,6.03781238,147.26,147.23,6.7902]
[1745879258979,6.03781238,147.25,147.22,31.9506]
[1745879259574,6.03781238,147.25,147.23,6.7903]
[1745879263179,6.03781238,147.25,147.24,6.7899]
[1745879269785,6.03781238,147.25,147.18,25.18]
[1745879270087,6.03781238,147.22,147.18,31.21781238]
[1745879270277,6.03781238,147.23,147.18,31.21781238]
[1745879270483,6.03781238,147.22,147.18,31.21781238]
[1745879270887,6.03781238,147.22,147.2,6.7914]
[1745879272186,6.03781238,147.22,147.18,25.18]
[1745879272584,6.03781238,147.22,147.19,6.7921]
[1745879272784,6.03781238,147.22,147.18,25.18]
[1745879273284,6.03781238,147.22,147.19,6.7921]
[1745879274990,6.03781238,147.22,147.2,6.7916]
[1745879276289,6.03781238,147.22,147.19,6.792]
[1745879277388,6.03781238,147.22,147.2,6.7917]
[1745879277889,6.03781238,147.22,147.19,6.792]
[1745879278685,6.03781238,147.22,147.2,6.7917]
[1745879283389,6.03781238,147.23,147.21,6.7913]
[1745879283695,6.03781238,147.25,147.21,6.03781238]
[1745879283894,6.03781238,147.25,147.22,6.7906]
[1745879284098,31.9692,147.26,147.22,6.7906]
[1745879284402,6.03781238,147.23,147.19,6.03781238]
[1745879284596,6.03781238,147.22,147.2,6.7915]
[1745879286394,6.03781238,147.22,147.21,6.7913]
[1745879287698,6.03781238,147.22,147.2,6.7916]
[1745879291201,12.82891238,147.22,147.19,6.792]
[1745879292496,6.03781238,147.22,147.2,6.7915]
[1745879294903,12.82861238,147.22,147.19,6.792]
[1745879299501,12.82861238,147.22,147.2,6.7917]
[1745879299699,12.82841238,147.23,147.2,6.7917]
[1745879300003,6.03781238,147.23,147.19,6.03781238]
[1745879300203,6.7909,147.22,147.19,12.82981238]
[1745879302504,6.7909,147.22,147.19,6.792]
[1745879303207,12.82871238,147.22,147.19,6.792]
[1745879304106,6.7916,147.21,147.18,38.01041238]
[1745879304600,6.7916,147.21,147.18,31.21781238]
[1745879304806,12.82881238,147.22,147.19,6.7922]
[1745879305005,12.82881238,147.22,147.18,31.21781238]
[1745879305407,12.82881238,147.22,147.19,6.7921]
[1745879306811,6.03781238,147.22,147.2,6.7916]
[1745879307107,6.03781238,147.23,147.2,6.7916]
[1745879307708,12.82831238,147.23,147.2,6.7916]
[1745879308209,6.7908,147.22,147.2,6.7916]
[1745879309910,12.82841238,147.23,147.2,6.7916]
[1745879310207,25.18,147.26,147.2,6.03781238]
[1745879310408,6.03781238,147.24,147.2,6.03781238]
[1745879310708,12.82781238,147.24,147.2,6.03781238]
[1745879310910,12.82781238,147.24,147.21,6.791]
[1745879314313,6.03781238,147.23,147.21,6.791]
[1745879316012,12.82781238,147.24,147.21,6.791]
[1745879318110,6.7904,147.23,147.21,6.791]
[1745879319815,12.82771238,147.24,147.21,6.791]
[1745879322318,12.82771238,147.24,147.2,12.82931238]
[1745879324218,12.82771238,147.24,147.21,6.7912]
[1745879325319,12.82771238,147.24,147.2,12.82931238]
[1745879325522,12.82771238,147.24,147.2,6.03781238]
[1745879326720,6.03781238,147.24,147.21,6.791]
[1745879328421,12.82781238,147.24,147.2,12.82941238]
[1745879328825,12.82781238,147.24,147.2,6.7916]
[1745879330625,12.82781238,147.24,147.21,6.7912]
[1745879331927,6.03781238,147.24,147.21,6.7912]
[1745879332730,12.82771238,147.24,147.21,6.7912]
[1745879333129,6.03781238,147.24,147.21,6.7912]
[1745879334730,12.82771238,147.24,147.21,6.7912]
[1745879337428,6.03781238,147.22,147.18,25.18]
[1745879338031,6.7913,147.21,147.18,31.9724]
[1745879338234,6.03781238,147.2,147.15,31.17781238]
[1745879338726,6.03781238,147.21,147.17,6.03781238]
[1745879338930,6.03781238,147.22,147.18,6.03781238]
[1745879339130,6.03781238,147.22,147.19,6.7919]
[1745879339330,6.03781238,147.22,147.18,6.03781238]
[1745879339531,6.03781238,147.22,147.19,6.7921]
[1745879339838,6.03781238,147.22,147.18,6.03781238]
[1745879340324,6.03781238,147.22,147.19,6.7921]
[1745879341332,12.82871238,147.22,147.19,6.7921]
[1745879342034,6.03781238,147.21,147.16,6.03781238]
[1745879342233,6.03781238,147.21,147.17,6.03781238]
[1745879343133,6.03781238,147.22,147.18,6.03781238]
[1745879343333,6.03781238,147.22,147.15,25.14]
[1745879343334,6.03781238,147.23,147.19,6.03781238]
[1745879343736,12.82841238,147.23,147.2,6.7916]
[1745879344537,6.03781238,147.21,147.12,4.0294]
[1745879344733,6.03781238,147.16,147.12,4.0294]
[1745879345137,6.03781238,147.16,147.13,6.7946]
[1745879346935,6.03781238,147.16,147.14,6.7943]
[1745879347836,6.03781238,147.16,147.15,6.794]
[1745879352239,1.18262761,147.26,147.15,31.15781238]
[1745879352447,6.03781238,147.22,147.17,6.03781238]
[1745879352942,6.03781238,147.22,147.16,6.03781238]
[1745879353343,6.03781238,147.22,147.2,6.7917]
[1745879353541,6.7905,147.23,147.2,6.7917]
[1745879357141,6.7905,147.23,147.19,6.7919]
[1745879358348,6.7905,147.23,147.2,6.7914]
[1745879358549,9.44467313,147.24,147.15,25.12]
[1745879359347,6.7914,147.21,147.18,6.7924]
[1745879360746,9.44467313,147.22,147.15,25.12]
[1745879361349,6.7918,147.2,147.16,6.7933]
[1745879361650,6.7918,147.2,147.15,25.12]
[1745879362846,9.44467313,147.22,147.15,25.12]
[1745879363848,9.44467313,147.24,147.15,25.12]
[1745879364345,6.7917,147.21,147.17,6.7929]
[1745879365444,6.7917,147.21,147.18,6.7926]
[1745879368755,25.12,147.25,147.16,9.44467313]
[1745879368949,25.12,147.25,147.18,9.44467313]
[1745879369149,31.9097,147.25,147.21,6.7909]
[1745879369852,31.9097,147.25,147.19,25.12]
[1745879370852,31.9097,147.25,147.21,6.7909]
[1745879371551,6.7899,147.24,147.21,6.7909]
[1745879372352,31.9096,147.25,147.21,6.7909]
[1745879373254,6.7899,147.24,147.21,6.7909]
[1745879373553,25.12,147.25,147.21,6.7909]
[1745879374157,31.9098,147.25,147.21,6.7909]
[1745879374356,25.12,147.25,147.21,6.7909]
[1745879374955,6.7901,147.24,147.21,6.7909]
[1745879375154,9.44467313,147.24,147.16,34.54467313]
[1745879375351,9.44467313,147.22,147.16,25.1]
[1745879375651,6.792,147.2,147.16,31.8933]
[1745879375853,6.792,147.2,147.16,25.1]
[1745879376150,6.792,147.2,147.17,6.7931]
[1745879378457,6.7924,147.19,147.16,31.8934]
[1745879380557,6.7924,147.19,147.16,25.1]
[1745879380758,9.44467313,147.22,147.12,6.1082]
[1745879380759,6.7931,147.17,147.13,25.08]
[1745879381956,6.7931,147.17,147.13,31.8748]
[1745879382857,6.7928,147.18,147.14,6.7944]
[1745879383557,6.7932,147.17,147.13,31.8748]
[1745879383754,6.7932,147.17,147.13,25.08]
[1745879384157,6.7929,147.18,147.14,6.7943]
[1745879384958,13.46367313,147.2,147.15,6.794]
[1745879385254,13.46367313,147.2,147.13,25.08]
[1745879385562,6.793,147.18,147.14,6.7943]
[1745879386358,6.793,147.18,147.15,6.7939]
[1745879387261,6.7932,147.17,147.14,6.7943]
[1745879389963,6.7932,147.17,147.13,6.7948]
[1745879393066,6.7932,147.17,147.14,6.7945]
[1745879393262,16.23747313,147.18,147.1,34.52467313]
[1745879393662,6.7932,147.17,147.1,34.52467313]
[1745879394364,6.7932,147.17,147.13,6.7947]
[1745879395365,6.7936,147.16,147.13,6.7947]
[1745879396667,6.7933,147.17,147.13,6.7947]
[1745879398667,6.7933,147.17,147.14,6.7945]
[1745879400171,6.7933,147.17,147.1,34.52467313]
[1745879400363,9.44467313,147.18,147.1,25.08]
[1745879400574,9.44467313,147.16,147.1,25.08]
[1745879400769,9.44467313,147.16,147.1,31.8761]
[1745879400964,9.44467313,147.14,147.07,25.1]
[1745879401370,6.796,147.11,147.08,6.797]
[1745879401874,9.44467313,147.14,147.07,25.1]
[1745879402276,4.0794,147.15,147.07,25.1]
[1745879402478,6.7955,147.12,147.08,6.797]
[1745879402770,498.42467313,147.2,147.1,9.44467313]
[1745879403077,523.52467313,147.2,147.11,25.1]
[1745879403678,34.54467313,147.2,147.12,9.44467313]
[1745879403878,25.1,147.2,147.14,9.44467313]
[1745879404177,25.1,147.2,147.09,5.9974]
[1745879404178,9.44467313,147.24,147.16,9.44467313]
[1745879404376,9.44467313,147.24,147.17,25.1]
[1745879404778,9.44467313,147.2,147.14,25.1]
[1745879406173,6.793,147.18,147.14,31.8942]
[1745879406477,9.44467313,147.2,147.14,31.8942]
[1745879406678,6.793,147.18,147.14,31.8942]
[1745879407479,1.9356,147.21,147.14,25.1]
[1745879408076,6.7922,147.19,147.15,6.7938]
[1745879408481,6.7922,147.19,147.14,25.1]
[1745879409777,6.7922,147.19,147.15,6.7939]
[1745879410182,6.7922,147.19,147.14,25.1]
[1745879410583,6.7922,147.19,147.16,6.7935]
[1745879410783,6.7922,147.19,147.14,25.1]
[1745879411483,6.7922,147.19,147.15,6.7939]
[1745879411883,6.7928,147.18,147.15,6.7939]
[1745879412684,6.7924,147.19,147.15,6.7939]
[1745879412885,1.9356,147.21,147.15,6.7939]
[1745879413983,1.9356,147.21,147.11,4.0802]
[1745879413984,9.44467313,147.18,147.1,523.50467313]
[1745879414184,34.50467313,147.18,147.1,523.50467313]
[1745879414585,25.06,147.18,147.1,523.50467313]
[1745879415486,9.44467313,147.17,147.1,25.06]
[1745879415687,9.44467313,147.17,147.1,31.8561]
[1745879415892,9.44467313,147.17,147.1,25.06]
[1745879416285,9.44467313,147.17,147.11,6.7958]
[1745879416488,9.44467313,147.17,147.1,25.06]
[1745879419192,6.7941,147.15,147.11,6.7956]
[1745879419692,6.7946,147.14,147.11,6.7956]
[1745879421593,6.7946,147.14,147.1,31.8562]
[1745879421784,6.7943,147.15,147.1,25.06]
[1745879422185,6.7943,147.15,147.12,6.7952]
[1745879422395,6.7943,147.15,147.1,25.06]
[1745879422794,6.7943,147.15,147.11,6.7957]
[1745879424289,6.7946,147.14,147.11,6.7957]
[1745879425198,6.795,147.13,147.1,31.8561]
[1745879425697,6.795,147.13,147.1,6.7961]
[1745879425899,6.7947,147.14,147.11,6.7959]
[1745879426294,9.44467313,147.17,147.08,40.70377313]
[1745879426498,25.06,147.18,147.1,9.44467313]
[1745879426899,31.853,147.18,147.15,6.794]
[1745879428899,25.06,147.18,147.15,6.794]
[1745879429500,31.853,147.18,147.14,6.7943]
[1745879429896,31.853,147.18,147.15,6.794]
[1745879431605,31.853,147.18,147.14,6.7943]
[1745879431800,4.0342,147.2,147.12,34.52467313]
[1745879432007,25.06,147.21,147.14,9.44467313]
[1745879432205,25.06,147.21,147.17,6.7929]
[1745879432402,31.8515,147.21,147.14,9.44467313]
[1745879432705,25.06,147.24,147.18,6.7924]
[1745879433100,6.7912,147.22,147.18,6.7924]
[1745879434508,6.7913,147.21,147.18,6.7924]
[1745879434908,25.06,147.24,147.18,6.7924]
[1745879435205,6.7911,147.22,147.18,6.7924]
[1745879436406,6.7913,147.21,147.18,6.7924]
[1745879439808,6.791,147.22,147.18,6.7924]
[1745879440003,25.06,147.24,147.16,34.50467313]
[1745879440406,6.7909,147.22,147.16,34.50467313]
[1745879442409,6.7909,147.22,147.18,6.7924]
[1745879442805,6.7909,147.22,147.16,34.50467313]
[1745879443101,6.7909,147.22,147.18,6.7922]
[1745879444212,6.7909,147.22,147.19,6.7922]
[1745879445111,6.7905,147.23,147.19,6.7922]
[1745879446611,6.7908,147.22,147.19,6.7922]
[1745879449711,6.7906,147.23,147.19,6.7922]
[1745879450012,25.06,147.24,147.19,6.7922]
[1745879450416,6.7908,147.22,147.19,6.7922]
[1745879453718,25.06,147.24,147.18,6.7924]
[1745879453916,9.44467313,147.21,147.13,31.2271]
[1745879454318,6.7924,147.19,147.15,6.7937]
[1745879454523,9.44467313,147.21,147.15,6.7937]
[1745879454711,9.44467313,147.21,147.13,31.2271]
[1745879455014,9.44467313,147.17,147.1,25.04]
[1745879455519,6.7946,147.14,147.11,6.7956]
[1745879455715,9.44467313,147.17,147.11,6.7956]
[1745879455917,13.44807313,147.19,147.1,34.48467313]
[1745879456420,6.7934,147.17,147.14,6.7945]
[1745879457513,6.7937,147.16,147.13,6.7948]
[1745879457817,9.44467313,147.15,147.1,25.04]
[1745879458120,9.44467313,147.15,147.07,25.04]
[1745879458318,6.7947,147.14,147.1,6.7961]
[1745879458516,25.04,147.16,147.08,9.44467313]
[1745879458718,25.04,147.16,147.13,6.7947]
[1745879458918,25.04,147.16,147.08,9.44467313]
[1745879459318,31.8339,147.16,147.12,6.7951]
[1745879460516,25.04,147.16,147.08,9.44467313]
[1745879460726,6.7933,147.17,147.1,9.44467313]
[1745879460919,6.7933,147.17,147.11,25.04]
[1745879461119,6.7941,147.15,147.11,25.04]
[1745879461524,6.7941,147.15,147.12,6.7953]
[1745879461918,6.7941,147.15,147.11,25.04]
[1745879462121,9.44467313,147.17,147.11,25.04]
[1745879462523,9.44467313,147.17,147.08,34.48467313]
[1745879463024,6.7938,147.16,147.08,34.48467313]
[1745879464424,6.7938,147.16,147.12,6.795]
[1745879464622,6.7941,147.15,147.12,6.795]
[1745879464821,6.7941,147.15,147.08,34.48467313]
[1745879465325,6.7941,147.15,147.11,6.7955]
[1745879465518,38.48807313,147.19,147.1,9.44467313]
[1745879465722,38.48807313,147.19,147.14,6.7941]
[1745879466425,6.7932,147.17,147.14,6.7941]
[1745879467322,38.48807313,147.19,147.1,9.44467313]
[1745879467830,6.7933,147.17,147.14,6.7945]
[1745879468223,38.48807313,147.19,147.11,25.04]
[1745879468425,6.7935,147.17,147.13,6.7948]
[1745879468630,38.48807313,147.19,147.13,6.7948]
[1745879469129,6.7934,147.17,147.14,6.7945]
[1745879469328,38.48807313,147.19,147.11,25.04]
[1745879469831,6.7928,147.18,147.11,25.04]
[1745879470131,38.48807313,147.19,147.11,25.04]
[1745879470333,9.44467313,147.15,147.11,25.04]
[1745879470526,9.44467313,147.15,147.06,9.44467313]
[1745879470733,9.44467313,147.15,147.08,25.02]
[1745879471131,34.46467313,147.15,147.08,25.02]
[1745879471330,9.44467313,147.13,147.08,25.02]
[1745879471633,16.23987313,147.13,147.08,31.8168]
[1745879471842,25.02,147.15,147.08,34.46467313]
[1745879472829,25.02,147.15,147.12,6.7951]
[1745879473028,25.02,147.15,147.08,34.46467313]
[1745879473625,16.23807313,147.17,147.13,6.7948]
[1745879474028,6.7936,147.16,147.13,6.7948]
[1745879474328,9.44467313,147.17,147.13,6.7948]
[1745879474529,16.23797313,147.17,147.13,6.7948]
[1745879475730,9.44467313,147.17,147.13,6.7948]
[1745879476235,6.7937,147.16,147.13,6.7948]
[1745879476639,9.44467313,147.17,147.08,34.46467313]
[1745879476831,25.02,147.18,147.1,9.44467313]
[1745879477032,2.0248,147.2,147.12,9.44467313]
[1745879477231,2.0248,147.2,147.13,25.02]
[1745879477636,2.0248,147.2,147.17,6.7929]
[1745879477937,6.7925,147.19,147.13,25.02]
[1745879478130,2.0248,147.2,147.13,25.02]
[1745879478339,9.44467313,147.19,147.13,25.02]
[1745879478638,2.0248,147.2,147.15,6.7938]
[1745879478835,9.44467313,147.19,147.13,25.02]
[1745879479034,6.7934,147.17,147.11,11.40737313]
[1745879479438,6.7934,147.17,147.13,6.7947]
[1745879479840,6.7936,147.16,147.13,6.7947]
[1745879481139,6.7936,147.16,147.12,6.7952]
[1745879482939,6.7933,147.17,147.11,11.40737313]
[1745879483437,6.7933,147.17,147.13,6.7947]
[1745879484848,6.7933,147.17,147.14,6.7945]
[1745879485842,6.7936,147.16,147.13,6.7948]
[1745879486443,6.7933,147.17,147.13,6.7948]
[1745879487246,6.7933,147.17,147.14,6.7945]
[1745879487439,9.44467313,147.19,147.14,6.7945]
[1745879487944,6.7934,147.17,147.14,6.7945]
[1745879488637,34.46467313,147.19,147.15,6.794]
[1745879488841,6.7929,147.18,147.15,6.794]
[1745879489442,6.7932,147.17,147.14,6.7943]
[1745879489649,34.46467313,147.19,147.11,11.40737313]
[1745879490049,6.7934,147.17,147.14,6.7944]
[1745879491948,6.7937,147.16,147.14,6.7944]
[1745879492252,34.46467313,147.19,147.14,6.7944]
[1745879492547,34.46467313,147.19,147.1,25.02]
[1745879492548,9.44467313,147.17,147.1,25.02]
[1745879493651,6.7944,147.15,147.12,6.7954]
[1745879493851,9.44467313,147.17,147.12,6.7954]
[1745879494050,9.44467313,147.17,147.1,25.02]
[1745879494456,9.44467313,147.15,147.07,25.02]
[1745879494657,34.46467313,147.15,147.07,25.02]
[1745879494850,6.7952,147.13,147.1,6.7963]
[1745879495853,34.46467313,147.15,147.07,25.02]
[1745879496054,9.44467313,147.13,147.07,25.02]
[1745879496655,6.7957,147.12,147.09,6.7966]
[1745879497554,6.7959,147.11,147.08,6.7973]
[1745879498856,6.7959,147.11,147.07,31.8175]
[1745879499155,6.7965,147.1,147.07,31.8175]
[1745879499551,6.7965,147.1,147.07,6.7975]
[1745879501158,6.7961,147.11,147.07,6.7975]
[1745879501557,34.46467313,147.15,147.07,9.44467313]
[1745879502059,34.46467313,147.15,147.1,6.796]
[1745879502357,6.7948,147.14,147.1,6.796]
[1745879502654,25.02,147.15,147.09,9.44467313]
[1745879502860,25.02,147.15,147.09,34.46467313]
[1745879503050,25.02,147.18,147.09,34.46467313]
[1745879503857,25.02,147.18,147.12,6.7951]
[1745879504156,25.02,147.18,147.09,34.46467313]
[1745879504352,6.7933,147.17,147.14,6.7942]
[1745879504860,6.7933,147.17,147.13,6.7948]
[1745879505154,6.7933,147.17,147.11,9.44467313]
[1745879506155,6.7933,147.17,147.13,6.7945]
[1745879506859,6.7933,147.17,147.14,6.7944]
[1745879507260,6.7937,147.16,147.11,9.44467313]
[1745879507759,25.02,147.18,147.11,9.44467313]
[1745879508365,6.7934,147.17,147.13,6.7949]
[1745879509063,6.7937,147.16,147.13,6.7949]
[1745879509365,25.02,147.18,147.13,6.7949]
[1745879509967,6.7935,147.17,147.13,6.7949]
[1745879511065,6.7935,147.17,147.14,6.7944]
[1745879512066,6.7936,147.16,147.13,6.7948]
[1745879512765,6.7942,147.15,147.12,6.7953]
[1745879512961,6.7942,147.15,147.11,9.44467313]
[1745879513265,6.7942,147.15,147.1,11.47877313]
[1745879513465,6.7937,147.16,147.1,11.47877313]
[1745879513863,25.02,147.18,147.1,11.47877313]
[1745879514059,6.7938,147.16,147.12,6.7951]
[1745879515269,9.44467313,147.16,147.08,6.797]
[1745879515569,9.44467313,147.14,147.06,25.02]
[1745879515770,25.02,147.14,147.06,25.02]
[1745879515968,25.02,147.14,147.09,6.7966]
[1745879516163,25.02,147.14,147.07,9.44467313]
[1745879516372,6.795,147.13,147.09,6.7966]
[1745879519272,6.795,147.13,147.1,6.7962]
[1745879519870,6.795,147.13,147.09,6.7965]
[1745879520174,6.795,147.13,147.07,9.44467313]
[1745879520667,34.46467313,147.17,147.09,9.44467313]
[1745879520867,34.46467313,147.17,147.1,25.02]
[1745879521672,6.7943,147.15,147.11,6.7957]
[1745879522269,6.7943,147.15,147.12,6.7954]
[1745879522571,6.7943,147.15,147.1,25.02]
[1745879522771,6.7943,147.15,147.11,6.7957]
[1745879522972,6.7943,147.15,147.1,25.02]
[1745879523572,6.7943,147.15,147.12,6.7952]
[1745879524672,6.7938,147.16,147.13,6.7949]
[1745879525073,34.46467313,147.17,147.1,25.02]
[1745879525973,6.7944,147.15,147.12,6.7952]
[1745879526272,34.46467313,147.17,147.1,25.02]
[1745879527073,6.7941,147.15,147.12,6.7952]
[1745879529575,6.7946,147.14,147.12,6.7952]
[1745879530083,6.7946,147.14,147.11,6.7957]
[1745879530677,34.46467313,147.17,147.1,31.8163]
[1745879531477,6.7952,147.13,147.1,31.8163]
[1745879532477,6.7952,147.13,147.11,6.7958]
[1745879532681,25.02,147.17,147.1,25.02]
[1745879533077,6.7955,147.12,147.1,25.02]
[1745879533280,34.46467313,147.17,147.1,25.02]
[1745879533579,34.46467313,147.17,147.11,6.7958]
[1745879534376,34.46467313,147.17,147.12,6.7954]
[1745879536779,6.7946,147.14,147.11,6.7957]
[1745879539582,6.7946,147.14,147.12,6.7954]
[1745879540080,6.7946,147.14,147.1,25.02]
[1745879540278,6.7946,147.14,147.11,6.7956]
[1745879543182,6.7942,147.15,147.12,6.7951]
[1745879544483,6.7946,147.14,147.11,12.84488379]
[1745879547484,6.04918379,147.16,147.11,6.04918379]
[1745879548481,6.7941,147.15,147.12,6.7951]
[1745879552989,4.1513,147.2,147.14,6.04918379]
[1745879553184,4.1513,147.2,147.17,6.04918379]
[1745879553691,6.7924,147.19,147.17,6.04918379]
[1745879554189,6.7924,147.19,147.16,12.84238379]
[1745879554891,10.9432,147.2,147.16,12.84238379]
[1745879555490,10.9432,147.2,147.16,6.7932]
[1745879555991,6.7922,147.19,147.16,6.7932]
[1745879558593,6.7927,147.18,147.16,6.7932]
[1745879559795,6.7924,147.19,147.16,6.7932]
[1745879560895,6.7927,147.18,147.16,6.7932]
[1745879561193,6.7927,147.18,147.15,6.7938]
[1745879561391,6.7937,147.16,147.14,25.0]
[1745879561596,9.4461704,147.19,147.14,25.0]
[1745879561796,9.4461704,147.19,147.11,24.98]
[1745879562294,6.794,147.15,147.11,24.98]
[1745879562795,6.794,147.15,147.12,6.7952]